Cogmind - Beta 15 @@@ ROGUE MODE // 2025.08.23 @ 11:29:38 Player: shapeshifter Result: Destroyed by 7R-MNS with Wave Gun Performance ------------- Evolutions (2) 1000 Regions Visited (4) 800 Robots Destroyed (51) 255 Value Destroyed (1066) 1066 Prototype IDs (3) 60 Alien Tech Used (0) 0 Bonus (-48) -48 TOTAL SCORE: 3133 Bonus ------- Friendly Fire -48 Cogmind --------- Core Integrity 0/550 Matter 240/300 Energy 100/100 System Corruption 5% Temperature Cool (29) Movement Core (350) Ox6 Location -8/Materials Parts ------- > --- POWER (1) -------- (None) > --- PROPULSION (3) --- (None) > --- UTILITY (3) ------ Large Storage Unit > --- WEAPON (4) ------- (None) > --- INVENTORY (15) --- Large Storage Unit Utility Shielding Hardened Light Armor Plating Peak State ------------ > --- POWER ------------ Improved Ion Engine > --- PROPULSION ------- Improved Aluminum Leg Improved Aluminum Leg > --- UTILITY ---------- Medium Storage Unit Advanced Visual Processing Unit > --- WEAPON ----------- Light Assault Rifle Light Assault Rifle Improved Assault Rifle Assault Cannon > --- INVENTORY -------- Ion Engine Armored Wheel Utility Shielding Hardened Light Armor Plating Hardened Light Armor Plating Hacking Suite Mini Grenade Launcher [Rating: 19] Favorites ----------- Power Ion Engine Engine Ion Engine Propulsion Improved Aluminum Leg Treads Light Treads Leg Improved Aluminum Leg Wheel Armored Wheel Utility Small Storage Unit Device Seismic Detector Storage Small Storage Unit Processor Advanced Visual Processing Unit Hackware Hacking Suite Protection Hardened Light Armor Plating Weapon Light Assault Rifle Ballistic Gun Light Assault Rifle Ballistic Cannon Assault Cannon Launcher Mini Grenade Launcher Build | -11 -10 -10 -9 -8 ------- Run | Yrd Mat Min Mat Mat Slots Evolved 4 | . . . 2 2 Power . | . . . . . Propulsion 1 | . . . . 1 Utility 1 | . . . . 1 Weapon 2 | . . . 2 . Parts Attached 27 | 7 1 1 13 5 Power 3 | 1 . . 2 . Engine 3 | 1 . . 2 . Core . | . . . . . Reactor . | . . . . . Propulsion 8 | 2 . . 4 2 Treads 4 | 2 . . 1 1 Leg 3 | . . . 3 . Wheel 1 | . . . . 1 Hover . | . . . . . Flight . | . . . . . Utility 7 | 2 . . 3 2 Device 1 | 1 . . . . Storage 3 | 1 . . 2 . Processor 1 | . . . 1 . Hackware 1 | . . . . 1 Protection 1 | . . . . 1 Artifact . | . . . . . Weapon 9 | 2 1 1 4 1 Energy Gun . | . . . . . Energy Cannon . | . . . . . Ballistic Gun 6 | 2 1 1 2 . Ballistic Cannon 2 | . . . 2 . Launcher 1 | . . . . 1 Special Weapon . | . . . . . Impact Weapon . | . . . . . Slashing Weapon . | . . . . . Piercing Weapon . | . . . . . Special Melee Weapon . | . . . . . Unidentified Prototypes 1 | . . . 1 . Parts Lost 17 | . . 2 5 10 Power 3 | . . 1 1 1 Propulsion 6 | . . 1 1 4 Utility 2 | . . . . 2 Weapon 6 | . . . 3 3 Highest Loss Streak 8 | . . 2 3 8 To Critical Strikes . | . . . . . Average Backups 7 | 3 7 8 7 4 Power . | . 1 1 . . Propulsion 1 | 1 2 2 1 . Utility 2 | . 1 1 3 4 Weapon 2 | . 3 4 1 . Tool/Special . | . . . . . Unused Backups 10 | . 3 . 4 3 Power . | . . . . . Propulsion 4 | . 1 . 3 . Utility 4 | . 1 . . 3 Weapon 2 | . 1 . 1 . Tool/Special . | . . . . . Average Slot Usage (%) 87 | . 100 95 85 73 Engine 7 | . 14 11 5 8 Treads 9 | . 28 26 1 8 Leg 12 | . . . 19 4 Wheel 1 | . . . . 8 Device 6 | . 14 14 4 . Storage 11 | . 14 14 11 9 Processor 5 | . . . 6 8 Ballistic Gun 28 | . 28 28 33 8 Ballistic Cannon 2 | . . . 2 8 Peak Build Rating 19 | 7 8 7 19 19 Average Rating 12 | 4 7 6 13 17 On Entrance 6 | . 7 7 5 15 Naked Turns . | . . . . . Heaviest Build 36 | 13 13 13 36 33 Greatest Support 40 | 40 40 40 26 12 Greatest Overweight (x) 8 | . . . 2 8 Average Overweight (x) . | . . . . 2 Largest Inventory Capacity 15 | 8 8 8 15 15 Average Capacity 9 | 7 8 8 8 15 Most Carried 9 | 7 8 8 9 6 Average Carried 7 | 3 7 8 7 4 Final Capacity 15 | 8 8 8 15 15 Final Carried 8 | 4 8 8 7 3 Class Distribution -------------------- 48% | Mutant 28% | Skirmisher 23% | Gunner Dominant Class ---------------- Mutant | -10/Materials Mutant | -10/Mines Skirmisher | -9/Materials Mutant | -8/Materials Resources | -11 -10 -10 -9 -8 ----------- Run | Yrd Mat Min Mat Mat Matter Collected 1163 | 265 83 4 543 268 Remotely . | . . . . . Salvage Created 1519 | 11 221 50 957 280 Parts 105 | 3 18 4 58 22 Haulers Intercepted 4 | . . . 3 1 Recyclers Shooed 1 | . . . 1 . Parts Field Recycled . | . . . . . Retrieved Matter . | . . . . . Parts Self-Destructed . | . . . . . Prevented . | . . . . . Kills | -11 -10 -10 -9 -8 ------- Run | Yrd Mat Min Mat Mat Combat Hostiles Destroyed 34 | . 7 3 19 5 Guns 30 | . 7 3 18 2 Cannons 4 | . . . 1 3 Classes Destroyed 11 | 1 4 . 4 2 Worker 1 | . . . 1 . Builder 2 | . . . . 2 Tunneler 2 | 1 . . . 1 Hauler 4 | . . . 3 1 Recycler 1 | . . . 1 . Operator 2 | . 1 . 1 . Watcher 5 | . 1 . 2 2 Swarmer 16 | . 3 3 7 3 Grunt 12 | . 4 . 8 . Sentry 4 | . . . 4 . Hunter 2 | . . . . 2 Best Kill Streak 5 | 1 3 3 5 5 Combat Bots Only 5 | . 3 3 5 2 Max Kills in Single Turn 2 | 1 1 1 2 2 Gunslinging 1 | . . . 1 . Exploded . | . . . . . Melee . | . . . . . Uniques/NPCs Destroyed . | . . . . . Combat | -11 -10 -10 -9 -8 -------- Run | Yrd Mat Min Mat Mat Hostile Shots Fired 244 | . 36 20 96 92 Missed 67 | . 15 4 28 20 Hits 177 | . 21 16 68 72 Melee 1 | . . . . 1 Projectile 176 | . 21 16 68 71 Critical Strikes 1 | . . . . 1 Damage Taken 2729 | . 317 130 747 1535 Core 678 | . 36 . 81 561 Absorbed by Shields . | . . . . . Core Remaining (%) 88 | 100 . 85 79 . Volleys Fired 164 | 5 29 7 83 40 Largest 4 | 2 2 2 4 2 Hottest 83 | 40 40 40 83 60 Shots Fired 426 | 10 58 14 268 76 Gun 379 | 10 58 14 261 36 Cannon 43 | . . . 7 36 Launcher 4 | . . . . 4 Special . | . . . . . Kinetic 422 | 10 58 14 268 72 Thermal . | . . . . . Explosive 4 | . . . . 4 Electromagnetic . | . . . . . Robot Hit Streak 14 | 3 9 9 12 14 Robot Miss Streak 6 | 2 6 1 5 4 Penetration Max . | . . . . . Secondary Targets 7 | . 1 . 6 . Max Gunslinging Chain 1 | . 1 . 1 . Shots Hit Robots 261 | 6 32 12 162 49 Core Hits 105 | 2 18 6 64 15 Critical Kills . | . . . . . Critical Parts Destroyed 2 | . 1 1 . . Critical Strikes 2 | . 1 1 . . Destroy 2 | . 1 1 . . Melee Attacks . | . . . . . Impact . | . . . . . Slashing . | . . . . . Piercing . | . . . . . Sneak Attacks . | . . . . . Combat Hostiles . | . . . . . Follow-up Attacks . | . . . . . Damage Inflicted 2992 | 49 279 89 1688 887 Guns 2309 | 49 279 89 1584 308 Cannons 517 | . . . 99 418 Explosions 161 | . . . . 161 Melee . | . . . . . Ramming 5 | . . . 5 . Kinetic 2826 | 49 279 89 1683 726 Thermal . | . . . . . Explosive 161 | . . . . 161 Electromagnetic . | . . . . . Impact . | . . . . . Slashing . | . . . . . Piercing . | . . . . . Highest Corruption 5 | . 1 1 . 5 Average Corruption 1 | . 1 1 . 5 Corruption Purged . | . . . . . Corruption Blocked . | . . . . . Overload Shots . | . . . . . Overflow Damage 37 | . . . . 37 Projectiles 17 | . . . . 17 Explosions 20 | . . . . 20 Melee . | . . . . . Knockbacks 3 | . . . . 3 Impact . | . . . . . Kinetic 3 | . . . . 3 Secondary . | . . . . . Self-Inflicted Damage 58 | . . . . 58 Shots 3 | . . . . 3 Rammed . | . . . . . Targets Rammed 1 | . . . 1 . Kicked 1 | . . . 1 . Crushed . | . . . . . Highest Temperature 292 | . 30 . 292 108 Average Temperature 58 | . 10 . 61 59 Received Heat Transfer 834 | . 111 . 255 468 Effects 1 | . . . 1 . Energy Bleed 1 | . . . 1 . Siege Activations . | . . . . . Martial Activations . | . . . . . Shielding Activations . | . . . . . Robots Disrupted . | . . . . . Combat Hostiles . | . . . . . Robots Corrupted . | . . . . . Combat Hostiles . | . . . . . Parts Fried . | . . . . . Impact Corruptions . | . . . . . Robots Melted . | . . . . . Combat Hostiles . | . . . . . Parts Melted . | . . . . . Heat Transferred . | . . . . . Parts Sabotaged . | . . . . . Parts Stolen . | . . . . . Parts Stripped . | . . . . . Power Chain Reactions . | . . . . . Alert | -11 -10 -10 -9 -8 ------- Run | Yrd Mat Min Mat Mat Maximum Alert Level . | . . . . . Low Security (%) 100 | 100 100 100 100 100 Level 1 . | . . . . . Level 2 . | . . . . . Level 3 . | . . . . . Level 4 . | . . . . . Level 5 . | . . . . . High Security . | . . . . . Max Security . | . . . . . Peak Influence 175 | 5 85 50 175 114 Initial 59 | . . 26 11 59 Average 71 | . 36 13 95 73 Influence Increases 1121 | 5 232 70 624 190 Destroy 0b10 Robot/C 680 | . 140 60 380 100 Destroy 0b10 Robot/NC 85 | 5 10 . 40 30 Destroy Leader 178 | . 32 10 100 36 Successful Hack 24 | . 5 . 11 8 Destroy Structure 19 | . . . 3 16 Lose Combat Pursuer 135 | . 45 . 90 . Influence Decreases 1112 | 5 163 109 514 321 Entered New Map 143 | . . 43 19 81 Time Decay 799 | 5 163 46 445 140 Lost Part 170 | . . 20 50 100 Squads Dispatched 7 | . 3 . 2 2 Investigation 2 | . 1 . . 1 Extermination . | . . . . . Reinforcement 5 | . 2 . 2 1 Assault . | . . . . . Garrison . | . . . . . Intercept . | . . . . . Searches Triggered . | . . . . . Construction Impeded 1 | . . . . 1 Haulers Reinforced . | . . . . . Active Scanning Responses . | . . . . . Cargo Convoy Interrupts . | . . . . . Stealth | -11 -10 -10 -9 -8 --------- Run | Yrd Mat Min Mat Mat Distress Signals 5 | . 2 . 2 1 Communications Jammed . | . . . . . Distress Signals . | . . . . . Times Spotted 68 | . 15 3 37 13 Peak Tracking Total 5 | . 4 3 5 4 Tactical Retreats 6 | . 2 . 4 . Traps | -11 -10 -10 -9 -8 ------- Run | Yrd Mat Min Mat Mat Traps Triggered 1 | . 1 . . . Indirectly . | . . . . . Trap Hack Attempts . | . . . . . Triggered . | . . . . . Disarmed . | . . . . . Reprogrammed . | . . . . . Reused . | . . . . . Traps Extracted . | . . . . . Installed . | . . . . . Triggered . | . . . . . Machines | -11 -10 -10 -9 -8 ---------- Run | Yrd Mat Min Mat Mat Machines Disabled . | . . . . . Max in Single Turn . | . . . . . Machines Repaired . | . . . . . Machines Dismantled . | . . . . . Machines Sabotaged . | . . . . . Overloaded Fab Kills . | . . . . . Hacking | -11 -10 -10 -9 -8 --------- Run | Yrd Mat Min Mat Mat Machines Accessed 14 | . 3 . 6 5 Terminals 14 | . 3 . 6 5 Fabricators . | . . . . . Repair Stations . | . . . . . Recycling Units . | . . . . . Scanalyzers . | . . . . . Garrison Access . | . . . . . Total Hacks 32 | . 7 . 13 12 Successful 9 | . 1 . 6 2 Failed 23 | . 6 . 7 10 Catastrophic 2 | . 1 . 1 . Database Lockouts . | . . . . . Manual 15 | . 5 . 2 8 Terminals 32 | . 7 . 13 12 Fabricators . | . . . . . Repair Stations . | . . . . . Recycling Units . | . . . . . Scanalyzers . | . . . . . Garrison Access . | . . . . . Terminal Hacks 7 | . . . 6 1 Robot Analysis 1 | . . . 1 . Prototype ID Bank 1 | . . . 1 . Branch Access Points 1 | . . . 1 . Emergency Access Points 1 | . . . 1 . Garrison Index 1 | . . . . 1 Registered Components 1 | . . . 1 . Zone Layout 1 | . . . 1 . Fabricator Hacks . | . . . . . Repair Station Hacks . | . . . . . Recycling Unit Hacks . | . . . . . Scanalyzer . | . . . . . Garrison Access Hacks . | . . . . . Unauthorized Hacks 2 | . 1 . . 1 Terminals 2 | . 1 . . 1 Botnet 2 | . 1 . . 1 Fabricators . | . . . . . Repair Stations . | . . . . . Recycling Units . | . . . . . Scanalyzers . | . . . . . Garrison Access . | . . . . . Data Cores Recovered . | . . . . . Used . | . . . . . Hacking Detections 12 | . 3 . 5 4 Full Trace Events 4 | . 2 . . 2 Feedback Events . | . . . . . Feedback Blocked . | . . . . . Robot Schematics Acquired . | . . . . . Robots Built . | . . . . . Authchips . | . . . . . Time . | . . . . . Total Robot Build Rating . | . . . . . Part Schematics Acquired . | . . . . . Parts Built . | . . . . . Authchips . | . . . . . Time . | . . . . . Total Part Build Rating . | . . . . . Parts Repaired . | . . . . . Time . | . . . . . Parts Recycled . | . . . . . Recycled Matter . | . . . . . Retrieved Matter . | . . . . . Retrieved Components . | . . . . . Parts Scanalyzed . | . . . . . Part Schematics Acquired . | . . . . . Parts Damaged . | . . . . . Bothacking | -11 -10 -10 -9 -8 ------------ Run | Yrd Mat Min Mat Mat Used RIF Installer . | . . . . . Robots Hacked . | . . . . . Non-combat . | . . . . . Combat . | . . . . . Robot Hacks Applied . | . . . . . Relay Couplers Released . | . . . . . Fabnet Peak Effective % . | . . . . . Robots Rewired . | . . . . . Allies Hacked . | . . . . . Hacks Repelled . | . . . . . Allies | -11 -10 -10 -9 -8 -------- Run | Yrd Mat Min Mat Mat Total Allies . | . . . . . Largest Group . | . . . . . Highest-Rated Group . | . . . . . Highest-Rated Ally . | . . . . . Total Orders . | . . . . . Ally Attacks . | . . . . . Total Damage . | . . . . . Kills . | . . . . . Allies Corrupted . | . . . . . Allies Melted . | . . . . . Intel | -11 -10 -10 -9 -8 ------- Run | Yrd Mat Min Mat Mat Active Infowar (turns) 2185 | 22 408 161 1308 286 Optics 1070 | . . . 784 286 Seismic 1115 | 22 408 161 524 . Robot Analysis Total 1 | . . . 1 . Derelict Logs Recovered . | . . . . . Drone Launches . | . . . . . Drone Recoveries . | . . . . . Exploration | -11 -10 -10 -9 -8 ------------- Run | Yrd Mat Min Mat Mat Turns Passed 2280 | 114 408 161 1309 288 Spaces Moved 1247 | 56 200 89 764 138 Core 12 | 11 . . . 1 Treads 413 | 45 200 89 79 . Legs 685 | . . . 685 . Wheels 137 | . . . . 137 Hover . | . . . . . Flight . | . . . . . Fastest Speed 50 | 50 160 160 120 120 Average Speed 136 | 138 160 160 130 122 Slowest Speed 450 | 160 160 160 260 450 Overloaded Moves . | . . . . . Propulsion Burnouts . | . . . . . Robots Hopped . | . . . . . Potential Cave-ins . | . . . . . Cave-ins Triggered . | . . . . . Exploration Rate (%) 33 | 4 36 31 74 21 Regions Visited 4 Branch Regions 1 Pre-discovered Areas . | . . . . . Known Exits Taken . | . . . . . Unknown Exits Taken 4 | 1 1 1 1 . Scrap Searched . | . . . . . Spaces Dug 1 | . . . 1 . Terrain Destroyed 29 | . . . 3 26 Melee . | . . . . . Projectile 11 | . . . 3 8 AOE 18 | . . . . 18 Terrain Rammed . | . . . . . Walls Destroyed . | . . . . . Machines Disabled . | . . . . . Actions | -11 -10 -10 -9 -8 --------- Run | Yrd Mat Min Mat Mat Total 1538 | 85 245 97 927 184 Wait 57 | 7 5 . 45 . Move 1243 | 55 199 88 763 138 Hop . | . . . . . Pick Up 29 | 11 7 . 10 1 Fast Attach 5 | . . . 5 . Attach 17 | 7 . . 6 4 Detach . | . . . . . Swap 6 | . 1 1 3 1 Drop 16 | . 4 1 11 . Fire 164 | 5 29 7 83 40 Melee . | . . . . . Ram . | . . . . . Kick 1 | . . . 1 . Crush . | . . . . . Escape Stasis . | . . . . . Rewire . | . . . . . Trap . | . . . . . Miscellaneous . | . . . . . Route ------- -11/Scrapyard -10/Materials -10/Mines -9/Materials (discovered 4 exits: *Mat x3 / *Min) -8/Materials (discovered 1 exit: [*Fac]) History --------- Turn | Location | Event 5 | -11/Scrapyard | Discovered new exit (range 16) 115 | -11/Scrapyard | Entered Materials 313 | -10/Materials | Build established: Mutant 509 | -10/Materials | Discovered new exit (range 7) 523 | -10/Materials | Entered Mines 643 | -10/Mines | Discovered new exit (range 13) 684 | -10/Mines | Entered Materials 684 | -9/Materials | Evolved 2 slots: Weapon x2 969 | -9/Materials | Build established: Gunner 1164 | -9/Materials | Discovered new exit (range 9) 1167 | -9/Materials | Identified exit to Mines 1498 | -9/Materials | Build established: Skirmisher 1631 | -9/Materials | Discovered new exit (range 11) 1914 | -9/Materials | Lost 3 parts (1p1n1w) 1942 | -9/Materials | Discovered new exit (range 8) 1993 | -9/Materials | Entered another Materials area 1993 | -8/Materials | Evolved 2 slots: Propulsion x1, Utility x1 2146 | -8/Materials | Build established: Mutant 2196 | -8/Materials | Met 7R-MNS 2245 | -8/Materials | Attacked by 7R-MNS 2261 | -8/Materials | Core integrity fell below 50% 2264 | -8/Materials | Discovered new exit (range 20) 2277 | -8/Materials | Core integrity fell below 20% 2281 | -8/Materials | Destroyed by 7R-MNS with Wave Gun Last Messages --------------- 02251_ K-01 Serf collects debris. 02253_ K-01 Serf cleans the Terminal. 02253_ Ion Engine destroyed. 02254_ K-01 Serf collects debris. 02255_ Imp. Treads destroyed. 02258_ Imp. Assault Rifle destroyed. 02258_ K-01 Serf cleans the Terminal. 02259_ Discarded Hacking Suite. 02260_ Assault Cannon destroyed. 02264_ EXIT=FOUND 02269_ K-01 Serf cleans the Electrolysis Chamber. 02272_ Arm. Wheel destroyed. 02278_ K-01 Serf collects debris. 02278_ Mni. Grenade Launcher destroyed. 02278_ Destroyed Mni. Grenade Launcher. 02279_ Adv. Visual Processing Unit destroyed. 02279_ System corrupted by crushing effect (+5). 02279_ Knocked back. 02281_ Hrd. Light Armor Plating destroyed. Map ----- +----------------------------------------------------+ | ???????? #??????# #????????????????????????? | | ???????? #?????## ##???????????????????????? | | ?????####+########## #???????????????????????? | | ###### % #???????????????????????? | | = % T% #???????????????????????? | | ###### = ! #######+######/###??????? | | ????#####+######+### =[= T ???? | | ????# #??? ?##### [%[ ???? | | ????# #??? ?????# ![! ???? | | ????# """ #?? """????# """ #############????? | | ????# """ !#?? """????# """ #????????????????? | | ????# """ #? """#???# """ #????????????????? | | ????# #? #???# #????????????????? | | ????######## ] """#???# #????????????????? | | ???????????? """#???# k "" #????????????????? | | ???????????# ""?????# gg""" #????????????????? | | ???????????# ???????# """ #????????????????? | | ???????????# ???????# %#????????????????? | | ???????????#### ???????# !#????????????????? | | ??????????????##??????## "" =%+????????????????? | | ??????????????????????# """ =###########??????? | | ??????????????????????# """ ??????? | | ??????????????????????# ??????? | | ?????????????????????## b % #######??????????? | | ????????????????????## """ #????????????????? | | ????????????????????# @ "" #????????????????? | | ???????????????????# +????????????????? | | ???????????????????# #????????????????? | | ???????????????????# g #????????????????? | | ???????????????????# #????????????????? | | ???????????????????# #???????????????? | | ???????????????????## % #???????????????? | | ????????????????????## [= ! +???????????????? | | ?????????????????????###=%%% #???????????????? | | ???????????????????????#**%= #???????????????? | | ???????????????????????#%!%#######???????????????? | | ???????????????????????#! !#?????????????????????? | | ???????????????????????#%<%#?????????????????????? | | ????????????????????????!%=#?????????????????????? | | ????????????????????????;#;#?????????????????????? | | ????????????????????????#?##?????????????????????? | | ?????????????????????????????????????????????????? | | ?????????????????????????????????????????????????? | | ?????????????????????????????????????????????????? | | ?????????????????????????????????????????????????? | | ?????????????????????????????????????????????????? | | ?????????????????????????????????????????????????? | | ?????????????????????????????????????????????????? | | ?????????????????????????????????????????????????? | | ?????????????????????????????????????????????????? | +----------------------------------------------------+ Best States ------------- Heat Dissipation 31 Energy Generation 12 Energy Capacity 265 Matter Stores 300 Matter Capacity 300 Sight Range 20 Terrain Scan Density 10 Armor Coverage 150 Evasion (%) 55 Recoil Reduction 2 Offensive Hacking 10 Item Schematics ----------------- None Robot Schematics ------------------ None Fabricated ------------ Nothing Repaired ---------- Nothing Alien Tech Used ----------------- None Achievements -------------- None Challenges ------------ None Game ------ Seed SiegeDeflectorNullifier Manual? 0 Play Time 00:16:57 Cumulative 189.1 hours Start 2025.08.23 @ 11:09:25 End 2025.08.23 @ 11:29:38 Sessions 2 Manual Loads 0 Difficulty Rogue Special Mode None Game No. 296 Rogue 296 Adventurer 0 Explorer 0 Win Type - Total 4 Types 3/0/1/0/0/0/0/0/0/0 Lore% 79 Gallery% 74 Achievement% 55 Wizard Run 0 Options --------- Layout 1 ASCII 0 Keyboard 0 Movement Mouse Keybinds 0 Fullscreen 1 Font 24/Smallcaps Map View 50x40 Zoom Use 0% Tactical HUD 1 Map Filters NONE Filters NONE Steam 1 RUN: f2ecb8b5-30e3-44cc-a699-dced6205ba3e